Workbook

Sheet Steuerung
B2: Lagerbestandsverwaltung
B4: Verkaufslager Tropic Partykleid
B7: Kontrollieren Sie die Lagerbestände und berechnen Sie Lagerkennziffern.
B10: Erfassen Sie Zu- und Abgängge.
B13: Kontrollieren Sie die Lagerbewegungen.
B16: Erstellen Sie Bedarfsmeldungen.
B19: Lösen Sie Aufgaben zur Lagerbestandsverwaltung.

Sheet Bestand
A1: Lagerbestände Tropic Partykleid
A5: Artikel-Nr.: | B5: Artikel-Bezeichnung | C5: Größe | D5: Mengen-einheit | E5: Höchst-bestand | F5: Melde-bestand | G5: Mindest-bestand | H5: Bestand | I5: kritische Mengen | J5: Stückpreis | K5: Bestands-wert
A7: =Artikel!A7 -> 5011 | B7: =Artikel!B7 -> Tropic Partykleid, schwarz | C7: =Artikel!C7 -> 34 | D7: Stück | E7: =Artikel!D7 -> 50 | F7: =Artikel!E7 -> 25 | G7: =Artikel!F7 -> 10 | H7: =IF(Artikel!$BQ7>0,Artikel!$BQ7,IF(Artikel!$BI7>0,Artikel!$BI7,IF(Artikel!$BA7>0,Artikel!$BA7,IF(Artikel!$AS7>0,Artikel!$AS7,IF(Artikel!$AK7>0,Artikel!$AK7,IF(Artikel!$AC7>0,Artikel!$AC7,IF(Artikel!$U7>0,Artikel!$U7,IF(Artikel!$M7>0,Artikel!$M7,Artikel!$G7)))))))) -> 50 | I7: =IF(B7=0,"",IF(H7>=E7,"HöB",IF(H7<=G7,"MiB",IF(H7<=F7,"MeB","")))) -> HöB | J7: =Artikel!H7 -> 80 | K7: =H7*J7 -> 4000
A8: =Artikel!A8 -> 5012 | B8: =Artikel!B8 -> Tropic Partykleid, schwarz | C8: =Artikel!C8 -> 36 | D8: Stück | E8: =Artikel!D8 -> 100 | F8: =Artikel!E8 -> 50 | G8: =Artikel!F8 -> 10 | H8: =IF(Artikel!$BQ8>0,Artikel!$BQ8,IF(Artikel!$BI8>0,Artikel!$BI8,IF(Artikel!$BA8>0,Artikel!$BA8,IF(Artikel!$AS8>0,Artikel!$AS8,IF(Artikel!$AK8>0,Artikel!$AK8,IF(Artikel!$AC8>0,Artikel!$AC8,IF(Artikel!$U8>0,Artikel!$U8,IF(Artikel!$M8>0,Artikel!$M8,Artikel!$G8)))))))) -> 60 | I8: =IF(B8=0,"",IF(H8>=E8,"HöB",IF(H8<=G8,"MiB",IF(H8<=F8,"MeB","")))) ->  | J8: =Artikel!H8 -> 80 | K8: =H8*J8 -> 4800
A9: =Artikel!A9 -> 5013 | B9: =Artikel!B9 -> Tropic Partykleid, schwarz | C9: =Artikel!C9 -> 38 | D9: Stück | E9: =Artikel!D9 -> 100 | F9: =Artikel!E9 -> 50 | G9: =Artikel!F9 -> 10 | H9: =IF(Artikel!$BQ9>0,Artikel!$BQ9,IF(Artikel!$BI9>0,Artikel!$BI9,IF(Artikel!$BA9>0,Artikel!$BA9,IF(Artikel!$AS9>0,Artikel!$AS9,IF(Artikel!$AK9>0,Artikel!$AK9,IF(Artikel!$AC9>0,Artikel!$AC9,IF(Artikel!$U9>0,Artikel!$U9,IF(Artikel!$M9>0,Artikel!$M9,Artikel!$G9)))))))) -> 60 | J9: =Artikel!H9 -> 80 | K9: =H9*J9 -> 4800
A10: =Artikel!A10 -> 5014 | B10: =Artikel!B10 -> Tropic Partykleid, schwarz | C10: =Artikel!C10 -> 40 | D10: Stück | E10: =Artikel!D10 -> 100 | F10: =Artikel!E10 -> 50 | G10: =Artikel!F10 -> 10 | H10: =IF(Artikel!$BQ10>0,Artikel!$BQ10,IF(Artikel!$BI10>0,Artikel!$BI10,IF(Artikel!$BA10>0,Artikel!$BA10,IF(Artikel!$AS10>0,Artikel!$AS10,IF(Artikel!$AK10>0,Artikel!$AK10,IF(Artikel!$AC10>0,Artikel!$AC10,IF(Artikel!$U10>0,Artikel!$U10,IF(Artikel!$M10>0,Artikel!$M10,Artikel!$G10)))))))) -> 40 | I10: MeB | J10: =Artikel!H10 -> 80 | K10: 3200
A11: =Artikel!A11 -> 5015 | B11: =Artikel!B11 -> Tropic Partykleid, schwarz | C11: =Artikel!C11 -> 42 | D11: Stück | E11: =Artikel!D11 -> 50 | F11: =Artikel!E11 -> 25 | G11: =Artikel!F11 -> 10 | H11: =IF(Artikel!$BQ11>0,Artikel!$BQ11,IF(Artikel!$BI11>0,Artikel!$BI11,IF(Artikel!$BA11>0,Artikel!$BA11,IF(Artikel!$AS11>0,Artikel!$AS11,IF(Artikel!$AK11>0,Artikel!$AK11,IF(Artikel!$AC11>0,Artikel!$AC11,IF(Artikel!$U11>0,Artikel!$U11,IF(Artikel!$M11>0,Artikel!$M11,Artikel!$G11)))))))) -> 50 | I11: HöB | J11: =Artikel!H11 -> 80 | K11: 4000
A12: =Artikel!A12 -> 5021 | B12: =Artikel!B12 -> Tropic Partykleid, grün-orange | C12: =Artikel!C12 -> 34 | D12: Stück | E12: =Artikel!D12 -> 50 | F12: =Artikel!E12 -> 25 | G12: =Artikel!F12 -> 10 | H12: =IF(Artikel!$BQ12>0,Artikel!$BQ12,IF(Artikel!$BI12>0,Artikel!$BI12,IF(Artikel!$BA12>0,Artikel!$BA12,IF(Artikel!$AS12>0,Artikel!$AS12,IF(Artikel!$AK12>0,Artikel!$AK12,IF(Artikel!$AC12>0,Artikel!$AC12,IF(Artikel!$U12>0,Artikel!$U12,IF(Artikel!$M12>0,Artikel!$M12,Artikel!$G12)))))))) -> 30 | J12: =Artikel!H12 -> 80 | K12: 2400
A13: =Artikel!A13 -> 5022 | B13: =Artikel!B13 -> Tropic Partykleid, grün-orange | C13: =Artikel!C13 -> 36 | D13: Stück | E13: =Artikel!D13 -> 100 | F13: =Artikel!E13 -> 50 | G13: =Artikel!F13 -> 10 | H13: =IF(Artikel!$BQ13>0,Artikel!$BQ13,IF(Artikel!$BI13>0,Artikel!$BI13,IF(Artikel!$BA13>0,Artikel!$BA13,IF(Artikel!$AS13>0,Artikel!$AS13,IF(Artikel!$AK13>0,Artikel!$AK13,IF(Artikel!$AC13>0,Artikel!$AC13,IF(Artikel!$U13>0,Artikel!$U13,IF(Artikel!$M13>0,Artikel!$M13,Artikel!$G13)))))))) -> 90 | J13: =Artikel!H13 -> 80 | K13: 7200
A14: =Artikel!A14 -> 5023 | B14: =Artikel!B14 -> Tropic Partykleid, grün-orange | C14: =Artikel!C14 -> 38 | D14: Stück | E14: =Artikel!D14 -> 100 | F14: =Artikel!E14 -> 50 | G14: =Artikel!F14 -> 10 | H14: =IF(Artikel!$BQ14>0,Artikel!$BQ14,IF(Artikel!$BI14>0,Artikel!$BI14,IF(Artikel!$BA14>0,Artikel!$BA14,IF(Artikel!$AS14>0,Artikel!$AS14,IF(Artikel!$AK14>0,Artikel!$AK14,IF(Artikel!$AC14>0,Artikel!$AC14,IF(Artikel!$U14>0,Artikel!$U14,IF(Artikel!$M14>0,Artikel!$M14,Artikel!$G14)))))))) -> 75 | J14: =Artikel!H14 -> 80 | K14: 6000
A15: =Artikel!A15 -> 5024 | B15: =Artikel!B15 -> Tropic Partykleid, grün-orange | C15: =Artikel!C15 -> 40 | D15: Stück | E15: =Artikel!D15 -> 100 | F15: =Artikel!E15 -> 50 | G15: =Artikel!F15 -> 10 | H15: =IF(Artikel!$BQ15>0,Artikel!$BQ15,IF(Artikel!$BI15>0,Artikel!$BI15,IF(Artikel!$BA15>0,Artikel!$BA15,IF(Artikel!$AS15>0,Artikel!$AS15,IF(Artikel!$AK15>0,Artikel!$AK15,IF(Artikel!$AC15>0,Artikel!$AC15,IF(Artikel!$U15>0,Artikel!$U15,IF(Artikel!$M15>0,Artikel!$M15,Artikel!$G15)))))))) -> 60 | J15: =Artikel!H15 -> 80 | K15: 4800
A16: =Artikel!A16 -> 5025 | B16: =Artikel!B16 -> Tropic Partykleid, grün-orange | C16: =Artikel!C16 -> 42 | D16: Stück | E16: =Artikel!D16 -> 50 | F16: =Artikel!E16 -> 25 | G16: =Artikel!F16 -> 10 | H16: =IF(Artikel!$BQ16>0,Artikel!$BQ16,IF(Artikel!$BI16>0,Artikel!$BI16,IF(Artikel!$BA16>0,Artikel!$BA16,IF(Artikel!$AS16>0,Artikel!$AS16,IF(Artikel!$AK16>0,Artikel!$AK16,IF(Artikel!$AC16>0,Artikel!$AC16,IF(Artikel!$U16>0,Artikel!$U16,IF(Artikel!$M16>0,Artikel!$M16,Artikel!$G16)))))))) -> 45 | J16: =Artikel!H16 -> 80 | K16: =H16*J16 -> 3600
A18: Lagerkennziffern | C18: Die Kennziffern beziehen sich jeweils auf die aktuellen Bestands- bzw Verbauchs-mengen das jeweiligen Kleides. | I18: Kalkulationszinssatz | K18: 0.02
A20: Artikel-Nr.: | B20: Artikel-Bezeichnung | C20: durchschnittlicher Lagerbestand | E20: Verkauf | G20: Umschlagshäufigkeit | I20: durchschnittliche Lagerdauer | K20: Lager- zinssatz
A22: =Artikel!A7 -> 5011 | B22: =CONCATENATE(Artikel!B7," ",Artikel!C7) -> Tropic Partykleid, schwarz 34 | C22: =(Artikel!G7+Bestand!H7)/2 -> 45 | E22: =Artikel!G7+IF(Artikel!J7="Zugang",Artikel!L7,0)+IF(Artikel!R7="Zugang",Artikel!T7,0)+IF(Artikel!Z7="Zugang",Artikel!AB7,0)+IF(Artikel!AH7="Zugang",Artikel!AJ7,0)+IF(Artikel!AP7="Zugang",Artikel!AR7,0)+IF(Artikel!AX7="Zugang",Artikel!AZ7,0)+IF(Artikel!BF7="Zugagn",Artikel!BH7,0)+IF(Artikel!BN7="Zugang",Artikel!BP7,0)-Bestand!H7 -> 20 | G22: =IF(AND(C22>0,E22>0),C22/E22,0) -> 2.25 | I22: =IF(G22>0,360/G22,360) -> 160 | K22: =(I22*$K$18)/360 -> 0.008888888889
A23: =Artikel!A8 -> 5012 | B23: =CONCATENATE(Artikel!B8," ",Artikel!C8) -> Tropic Partykleid, schwarz 36 | C23: =(Artikel!G8+Bestand!H8)/2 -> 67.5 | E23: =Artikel!G8+IF(Artikel!J8="Zugang",Artikel!L8,0)+IF(Artikel!R8="Zugang",Artikel!T8,0)+IF(Artikel!Z8="Zugang",Artikel!AB8,0)+IF(Artikel!AH8="Zugang",Artikel!AJ8,0)+IF(Artikel!AP8="Zugang",Artikel!AR8,0)+IF(Artikel!AX8="Zugang",Artikel!AZ8,0)+IF(Artikel!BF8="Zugagn",Artikel!BH8,0)+IF(Artikel!BN8="Zugang",Artikel!BP8,0)-Bestand!H8 -> 15 | G23: =IF(AND(C23>0,E23>0),C23/E23,0) -> 4.5 | I23: =IF(G23>0,360/G23,360) -> 80 | K23: =(I23*$K$18)/360 -> 0.004444444444
A24: =Artikel!A9 -> 5013 | B24: =CONCATENATE(Artikel!B9," ",Artikel!C9) -> Tropic Partykleid, schwarz 38 | C24: =(Artikel!G9+Bestand!H9)/2 -> 80 | E24: =Artikel!G9+IF(Artikel!J9="Zugang",Artikel!L9,0)+IF(Artikel!R9="Zugang",Artikel!T9,0)+IF(Artikel!Z9="Zugang",Artikel!AB9,0)+IF(Artikel!AH9="Zugang",Artikel!AJ9,0)+IF(Artikel!AP9="Zugang",Artikel!AR9,0)+IF(Artikel!AX9="Zugang",Artikel!AZ9,0)+IF(Artikel!BF9="Zugagn",Artikel!BH9,0)+IF(Artikel!BN9="Zugang",Artikel!BP9,0)-Bestand!H9 -> 40 | G24: 2 | I24: 180 | K24: 0.01
A25: =Artikel!A10 -> 5014 | B25: =CONCATENATE(Artikel!B10," ",Artikel!C10) -> Tropic Partykleid, schwarz 40 | C25: =(Artikel!G10+Bestand!H10)/2 -> 50 | E25: =Artikel!G10+IF(Artikel!J10="Zugang",Artikel!L10,0)+IF(Artikel!R10="Zugang",Artikel!T10,0)+IF(Artikel!Z10="Zugang",Artikel!AB10,0)+IF(Artikel!AH10="Zugang",Artikel!AJ10,0)+IF(Artikel!AP10="Zugang",Artikel!AR10,0)+IF(Artikel!AX10="Zugang",Artikel!AZ10,0)+IF(Artikel!BF10="Zugagn",Artikel!BH10,0)+IF(Artikel!BN10="Zugang",Artikel!BP10,0)-Bestand!H10 -> 20 | G25: 2.5 | I25: 144 | K25: 0.008
A26: =Artikel!A11 -> 5015 | B26: =CONCATENATE(Artikel!B11," ",Artikel!C11) -> Tropic Partykleid, schwarz 42 | C26: =(Artikel!G11+Bestand!H11)/2 -> 35 | E26: =Artikel!G11+IF(Artikel!J11="Zugang",Artikel!L11,0)+IF(Artikel!R11="Zugang",Artikel!T11,0)+IF(Artikel!Z11="Zugang",Artikel!AB11,0)+IF(Artikel!AH11="Zugang",Artikel!AJ11,0)+IF(Artikel!AP11="Zugang",Artikel!AR11,0)+IF(Artikel!AX11="Zugang",Artikel!AZ11,0)+IF(Artikel!BF11="Zugagn",Artikel!BH11,0)+IF(Artikel!BN11="Zugang",Artikel!BP11,0)-Bestand!H11 -> 0 | G26: 0 | I26: 360 | K26: 0.02
A27: =Artikel!A12 -> 5021 | B27: =CONCATENATE(Artikel!B12," ",Artikel!C12) -> Tropic Partykleid, grün-orange 34 | C27: =(Artikel!G12+Bestand!H12)/2 -> 40 | E27: =Artikel!G12+IF(Artikel!J12="Zugang",Artikel!L12,0)+IF(Artikel!R12="Zugang",Artikel!T12,0)+IF(Artikel!Z12="Zugang",Artikel!AB12,0)+IF(Artikel!AH12="Zugang",Artikel!AJ12,0)+IF(Artikel!AP12="Zugang",Artikel!AR12,0)+IF(Artikel!AX12="Zugang",Artikel!AZ12,0)+IF(Artikel!BF12="Zugagn",Artikel!BH12,0)+IF(Artikel!BN12="Zugang",Artikel!BP12,0)-Bestand!H12 -> 20 | G27: 2 | I27: 180 | K27: 0.01
A28: =Artikel!A13 -> 5022 | B28: =CONCATENATE(Artikel!B13," ",Artikel!C13) -> Tropic Partykleid, grün-orange 36 | C28: =(Artikel!G13+Bestand!H13)/2 -> 80 | E28: =Artikel!G13+IF(Artikel!J13="Zugang",Artikel!L13,0)+IF(Artikel!R13="Zugang",Artikel!T13,0)+IF(Artikel!Z13="Zugang",Artikel!AB13,0)+IF(Artikel!AH13="Zugang",Artikel!AJ13,0)+IF(Artikel!AP13="Zugang",Artikel!AR13,0)+IF(Artikel!AX13="Zugang",Artikel!AZ13,0)+IF(Artikel!BF13="Zugagn",Artikel!BH13,0)+IF(Artikel!BN13="Zugang",Artikel!BP13,0)-Bestand!H13 -> 20 | G28: 4 | I28: 90 | K28: 0.005
A29: =Artikel!A14 -> 5023 | B29: =CONCATENATE(Artikel!B14," ",Artikel!C14) -> Tropic Partykleid, grün-orange 38 | C29: =(Artikel!G14+Bestand!H14)/2 -> 87.5 | E29: =Artikel!G14+IF(Artikel!J14="Zugang",Artikel!L14,0)+IF(Artikel!R14="Zugang",Artikel!T14,0)+IF(Artikel!Z14="Zugang",Artikel!AB14,0)+IF(Artikel!AH14="Zugang",Artikel!AJ14,0)+IF(Artikel!AP14="Zugang",Artikel!AR14,0)+IF(Artikel!AX14="Zugang",Artikel!AZ14,0)+IF(Artikel!BF14="Zugagn",Artikel!BH14,0)+IF(Artikel!BN14="Zugang",Artikel!BP14,0)-Bestand!H14 -> 25 | G29: 3.5 | I29: 102.8571429 | K29: 0.005714285714
A30: =Artikel!A15 -> 5024 | B30: =CONCATENATE(Artikel!B15," ",Artikel!C15) -> Tropic Partykleid, grün-orange 40 | C30: =(Artikel!G15+Bestand!H15)/2 -> 55 | E30: =Artikel!G15+IF(Artikel!J15="Zugang",Artikel!L15,0)+IF(Artikel!R15="Zugang",Artikel!T15,0)+IF(Artikel!Z15="Zugang",Artikel!AB15,0)+IF(Artikel!AH15="Zugang",Artikel!AJ15,0)+IF(Artikel!AP15="Zugang",Artikel!AR15,0)+IF(Artikel!AX15="Zugang",Artikel!AZ15,0)+IF(Artikel!BF15="Zugagn",Artikel!BH15,0)+IF(Artikel!BN15="Zugang",Artikel!BP15,0)-Bestand!H15 -> 40 | G30: 1.375 | I30: 261.8181818 | K30: 0.01454545455
A31: =Artikel!A16 -> 5025 | B31: =CONCATENATE(Artikel!B16," ",Artikel!C16) -> Tropic Partykleid, grün-orange 42 | C31: =(Artikel!G16+Bestand!H16)/2 -> 37.5 | E31: =Artikel!G16+IF(Artikel!J16="Zugang",Artikel!L16,0)+IF(Artikel!R16="Zugang",Artikel!T16,0)+IF(Artikel!Z16="Zugang",Artikel!AB16,0)+IF(Artikel!AH16="Zugang",Artikel!AJ16,0)+IF(Artikel!AP16="Zugang",Artikel!AR16,0)+IF(Artikel!AX16="Zugang",Artikel!AZ16,0)+IF(Artikel!BF16="Zugagn",Artikel!BH16,0)+IF(Artikel!BN16="Zugang",Artikel!BP16,0)-Bestand!H16 -> 10 | G31: 3.75 | I31: 96 | K31: 0.005333333333

Sheet Artikel
A1: Lagerbestand Tropic Partykleid
A5: Artikel-Nr.: | B5: Artikel-Bezeichnung | C5: Größen | D5: Höchst-bestand | E5: Melde-bestand | F5: Mindest-bestand | G5: Anfangs-bestand | H5: Stückpreis | I5: Datum 1 | J5: Zugang/ Abgang | K5: Stück-preis | L5: Menge | M5: Bestand | N5: kritische Mengen | O5: Durch-schnittswert | P5: Bestands-wert | Q5: Datum 2 | R5: Zugang/ Abgang | S5: Stück-preis | T5: Menge | U5: Bestand | V5: kritische Mengen | W5: Durch-schnittswert | X5: Bestands-wert | Y5: Datum 3 | Z5: Zugang/ Abgang | AA5: Stück-preis | AB5: Menge | AC5: Bestand | AD5: kritische Mengen | AE5: Durch-schnittswert | AF5: Bestands-wert | AG5: Datum 4 | AH5: Zugang/ Abgang | AI5: Stück-preis | AJ5: Menge | AK5: Bestand | AL5: kritische Mengen | AM5: Durch-schnittswert | AN5: Bestands-wert | AO5: Datum 5 | AP5: Zugang/ Abgang | AQ5: Stück-preis | AR5: Menge | AS5: Bestand | AT5: kritische Mengen | AU5: Durch-schnittswert | AV5: Bestands-wert | AW5: Datum 6 | AX5: Zugang/ Abgang | AY5: Stück-preis | AZ5: Menge | BA5: Bestand | BB5: kritische Mengen | BC5: Durch-schnittswert | BD5: Bestands-wert | BE5: Datum 7 | BF5: Zugang/ Abgang | BG5: Stück-preis | BH5: Menge | BI5: Bestand | BJ5: kritische Mengen | BK5: Durch-schnittswert | BL5: Bestands-wert | BM5: Datum 8 | BN5: Zugang/ Abgang | BO5: Stück-preis | BP5: Menge | BQ5: Bestand | BR5: kritische Mengen | BS5: Durch-schnittswert | BT5: Bestands-wert
A7: 5011 | B7: Tropic Partykleid, schwarz | C7: 34 | D7: 50 | E7: 25 | F7: 10 | G7: 40 | H7: 80 | I7: 2006-01-12 | J7: Abgang | L7: 20 | M7: =IF(J7="",0,IF(J7="Zugang",G7+L7,G7-L7)) -> 20 | N7: =IF(J7="","",IF(M7>=$D7,"HöB",IF(M7<=$F7,"MiB",IF(M7<=$E7,"MeB","")))) -> MeB | P7: =IF(J7="","",M7*$H7) -> 1600 | Q7: 2006-02-14 | R7: Zugang | T7: 30 | U7: =IF(R7="",0,IF(R7="Zugang",M7+T7,M7-T7)) -> 50 | V7: =IF(R7="","",IF(U7>=$D7,"HöB",IF(U7<=$F7,"MiB",IF(U7<=$E7,"MeB","")))) -> HöB | X7: =IF(R7="","",U7*$H7) -> 4000 | Z7: Abgang | AC7: =IF(Z7="",0,IF(Z7="Zugang",U7+AB7,U7-AB7)) -> 50 | AD7: =IF(Z7="","",IF(AC7>=$D7,"HöB",IF(AC7<=$F7,"MiB",IF(AC7<=$E7,"MeB","")))) -> HöB | AF7: =IF(Z7="","",AC7*$H7) -> 4000 | AK7: =IF(AH7="",0,IF(AH7="Zugang",AC7+AJ7,AC7-AJ7)) -> 0 | AL7: =IF(AH7="","",IF(AK7>=$D7,"HöB",IF(AK7<=$F7,"MiB",IF(AK7<=$E7,"MeB","")))) ->  | AN7: =IF(AH7="","",AK7*$H7) ->  | AS7: =IF(AP7="",0,IF(AP7="Zugang",AK7+AR7,AK7-AR7)) -> 0 | AT7: =IF(AP7="","",IF(AS7>=$D7,"HöB",IF(AS7<=$F7,"MiB",IF(AS7<=$E7,"MeB","")))) ->  | AV7: =IF(AP7="","",AS7*$H7) ->  | BA7: =IF(AX7="",0,IF(AX7="Zugang",AS7+AZ7,AS7-AZ7)) -> 0 | BB7: =IF(AX7="","",IF(BA7>=$D7,"HöB",IF(BA7<=$F7,"MiB",IF(BA7<=$E7,"MeB","")))) ->  | BD7: =IF(AX7="","",BA7*$H7) ->  | BI7: =IF(BF7="",0,IF(BF7="Zugang",BA7+BH7,BA7-BH7)) -> 0 | BJ7: =IF(BF7="","",IF(BI7>=$D7,"HöB",IF(BI7<=$F7,"MiB",IF(BI7<=$E7,"MeB","")))) ->  | BL7: =IF(BF7="","",BI7*$H7) ->  | BQ7: =IF(BN7="",0,IF(BN7="Zugang",BI7+BP7,BI7-BP7)) -> 0 | BR7: =IF(BN7="","",IF(BQ7>=$D7,"HöB",IF(BQ7<=$F7,"MiB",IF(BQ7<=$E7,"MeB","")))) ->  | BT7: =IF(BN7="","",BQ7*$H7) -> 
A8: 5012 | B8: Tropic Partykleid, schwarz | C8: 36 | D8: 100 | E8: 50 | F8: 10 | G8: 75 | H8: 80 | I8: 2006-01-13 | J8: Abgang | L8: 15 | M8: =IF(J8="",0,IF(J8="Zugang",G8+L8,G8-L8)) -> 60 | N8: =IF(J8="","",IF(M8>=$D8,"HöB",IF(M8<=$F8,"MiB",IF(M8<=$E8,"MeB","")))) ->  | P8: =IF(J8="","",M8*$H8) -> 4800 | U8: =IF(R8="",0,IF(R8="Zugang",M8+T8,M8-T8)) -> 0 | V8: =IF(R8="","",IF(U8>=$D8,"HöB",IF(U8<=$F8,"MiB",IF(U8<=$E8,"MeB","")))) ->  | X8: =IF(R8="","",U8*$H8) ->  | AC8: =IF(Z8="",0,IF(Z8="Zugang",U8+AB8,U8-AB8)) -> 0 | AD8: =IF(Z8="","",IF(AC8>=$D8,"HöB",IF(AC8<=$F8,"MiB",IF(AC8<=$E8,"MeB","")))) ->  | AF8: =IF(Z8="","",AC8*$H8) ->  | AK8: =IF(AH8="",0,IF(AH8="Zugang",AC8+AJ8,AC8-AJ8)) -> 0 | AL8: =IF(AH8="","",IF(AK8>=$D8,"HöB",IF(AK8<=$F8,"MiB",IF(AK8<=$E8,"MeB","")))) ->  | AN8: =IF(AH8="","",AK8*$H8) ->  | AS8: =IF(AP8="",0,IF(AP8="Zugang",AK8+AR8,AK8-AR8)) -> 0 | AT8: =IF(AP8="","",IF(AS8>=$D8,"HöB",IF(AS8<=$F8,"MiB",IF(AS8<=$E8,"MeB","")))) ->  | AV8: =IF(AP8="","",AS8*$H8) ->  | BA8: =IF(AX8="",0,IF(AX8="Zugang",AS8+AZ8,AS8-AZ8)) -> 0 | BB8: =IF(AX8="","",IF(BA8>=$D8,"HöB",IF(BA8<=$F8,"MiB",IF(BA8<=$E8,"MeB","")))) ->  | BD8: =IF(AX8="","",BA8*$H8) ->  | BI8: =IF(BF8="",0,IF(BF8="Zugang",BA8+BH8,BA8-BH8)) -> 0 | BJ8: =IF(BF8="","",IF(BI8>=$D8,"HöB",IF(BI8<=$F8,"MiB",IF(BI8<=$E8,"MeB","")))) ->  | BL8: =IF(BF8="","",BI8*$H8) ->  | BQ8: =IF(BN8="",0,IF(BN8="Zugang",BI8+BP8,BI8-BP8)) -> 0 | BR8: =IF(BN8="","",IF(BQ8>=$D8,"HöB",IF(BQ8<=$F8,"MiB",IF(BQ8<=$E8,"MeB","")))) ->  | BT8: =IF(BN8="","",BQ8*$H8) -> 
A9: 5013 | B9: Tropic Partykleid, schwarz | C9: 38 | D9: 100 | E9: 50 | F9: 10 | G9: 100 | H9: 80 | I9: 2006-01-20 | J9: Abgang | L9: 40 | M9: =IF(J9="",0,IF(J9="Zugang",G9+L9,G9-L9)) -> 60 | N9: =IF(J9="","",IF(M9>=$D9,"HöB",IF(M9<=$F9,"MiB",IF(M9<=$E9,"MeB","")))) ->  | P9: 4800 | R9: Abgang | U9: 60 | V9: =IF(R9="","",IF(U9>=$D9,"HöB",IF(U9<=$F9,"MiB",IF(U9<=$E9,"MeB","")))) ->  | X9: 4800 | Z9: Zugang | AC9: 60 | AD9: =IF(Z9="","",IF(AC9>=$D9,"HöB",IF(AC9<=$F9,"MiB",IF(AC9<=$E9,"MeB","")))) ->  | AF9: 4800 | AK9: =IF(AH9="",0,IF(AH9="Zugang",AC9+AJ9,AC9-AJ9)) -> 0 | AL9: =IF(AH9="","",IF(AK9>=$D9,"HöB",IF(AK9<=$F9,"MiB",IF(AK9<=$E9,"MeB","")))) ->  | AS9: =IF(AP9="",0,IF(AP9="Zugang",AK9+AR9,AK9-AR9)) -> 0 | AT9: =IF(AP9="","",IF(AS9>=$D9,"HöB",IF(AS9<=$F9,"MiB",IF(AS9<=$E9,"MeB","")))) ->  | BA9: =IF(AX9="",0,IF(AX9="Zugang",AS9+AZ9,AS9-AZ9)) -> 0 | BB9: =IF(AX9="","",IF(BA9>=$D9,"HöB",IF(BA9<=$F9,"MiB",IF(BA9<=$E9,"MeB","")))) ->  | BI9: =IF(BF9="",0,IF(BF9="Zugang",BA9+BH9,BA9-BH9)) -> 0 | BJ9: =IF(BF9="","",IF(BI9>=$D9,"HöB",IF(BI9<=$F9,"MiB",IF(BI9<=$E9,"MeB","")))) ->  | BQ9: =IF(BN9="",0,IF(BN9="Zugang",BI9+BP9,BI9-BP9)) -> 0 | BR9: =IF(BN9="","",IF(BQ9>=$D9,"HöB",IF(BQ9<=$F9,"MiB",IF(BQ9<=$E9,"MeB","")))) -> 
A10: 5014 | B10: Tropic Partykleid, schwarz | C10: 40 | D10: 100 | E10: 50 | F10: 10 | G10: 60 | H10: 80 | I10: 2006-02-01 | J10: Abgang | L10: 20 | M10: 40 | N10: MeB | P10: 3200 | U10: 0 | AC10: 0 | AK10: 0 | AS10: 0 | BA10: 0 | BI10: 0 | BQ10: 0
A11: 5015 | B11: Tropic Partykleid, schwarz | C11: 42 | D11: 50 | E11: 25 | F11: 10 | G11: 20 | H11: 80 | I11: 2006-02-01 | J11: Zugang | L11: 30 | M11: 50 | N11: HöB | P11: 4000 | U11: 0 | AC11: 0 | AK11: 0 | AS11: 0 | BA11: 0 | BI11: 0 | BQ11: 0
A12: 5021 | B12: Tropic Partykleid, grün-orange | C12: 34 | D12: 50 | E12: 25 | F12: 10 | G12: 50 | H12: 80 | I12: 2006-03-01 | J12: Abgang | L12: 20 | M12: 30 | P12: 2400 | U12: 0 | AC12: 0 | AK12: 0 | AS12: 0 | BA12: 0 | BI12: 0 | BQ12: 0
A13: 5022 | B13: Tropic Partykleid, grün-orange | C13: 36 | D13: 100 | E13: 50 | F13: 10 | G13: 70 | H13: 80 | I13: 2006-02-03 | J13: Abgang | L13: 20 | M13: 50 | N13: MeB | P13: 4000 | Q13: 2006-02-05 | R13: Zugang | T13: 40 | U13: 90 | X13: 7200 | AC13: 0 | AK13: 0 | AS13: 0 | BA13: 0 | BI13: 0 | BQ13: 0
A14: 5023 | B14: Tropic Partykleid, grün-orange | C14: 38 | D14: 100 | E14: 50 | F14: 10 | G14: 100 | H14: 80 | I14: 2006-02-02 | J14: Abgang | L14: 25 | M14: 75 | P14: 6000 | U14: =IF(R14="",0,IF(R14="Zugang",M14+T14,M14-T14)) -> 0 | AC14: 0 | AK14: 0 | AS14: 0 | BA14: 0 | BI14: 0 | BQ14: 0
A15: 5024 | B15: Tropic Partykleid, grün-orange | C15: 40 | D15: 100 | E15: 50 | F15: 10 | G15: 50 | H15: 80 | I15: 2006-02-06 | J15: Abgang | L15: 40 | M15: 10 | N15: MiB | P15: 800 | Q15: 2006-02-08 | R15: Zugang | T15: 50 | U15: 60 | X15: 4800 | AC15: 0 | AK15: 0 | AS15: 0 | BA15: 0 | BI15: 0 | BQ15: 0
A16: 5025 | B16: Tropic Partykleid, grün-orange | C16: 42 | D16: 50 | E16: 25 | F16: 10 | G16: 30 | H16: 80 | I16: 2006-02-23 | J16: Abgang | L16: 10 | M16: 20 | N16: MeB | P16: 1600 | Q16: 2006-02-25 | R16: Zugang | T16: 25 | U16: 45 | X16: 3600 | AC16: 0 | AK16: 0 | AS16: 0 | BA16: 0 | BI16: 0 | BQ16: 0

Sheet Bedarf
A1: Bedarfsmeldung | G1: Tropic GmbH | M1: Klicken Sie auf den Eingabebutton und geben Sie den Bedarf des Verkaufslagers an. Sie können einen Liefertermin bestimmen und Hinweise auf die Dringlichkeit des Bedarfs geben. (z.B. "sehr dringend")
G2: Rheingrafenstr. 20
G3: 55543 Bad Kreuznach
A4: an
A5: Näherei II | G5: Verkaufslager
G6: Telefon: | I6: 0671 2004 361
A7: Fertigprodukt: | C7: Tropic Partykleid
G8: Datum: | H8: =TODAY() -> 2020-08-31
A10: Bedarf | B10: Art.-Nr.: | C10: Artikel | D10: Größe | E10: Bestand | F10: kritische Menge | G10: Menge | H10: Preis | I10: Liefertermin | J10: Dringlichkeit
A11: =IF(L11=FALSE,"","X") ->  | B11: 5011 | C11: =Artikel!B7 -> Tropic Partykleid, schwarz | D11: 34 | E11: =Bestand!H7 -> 50 | F11: =IF(E11>=Bestand!E7,"Höchstbestand",IF(Bedarf!E11<=Bestand!G7,"Mindestbestand",IF(Bedarf!E11<=Bestand!F7,"Meldebestand",""))) -> Höchstbestand | H11: =Bestand!J7 -> 80 | L11: FALSE
B12: 5012 | C12: =Artikel!B8 -> Tropic Partykleid, schwarz | D12: 36 | E12: =Bestand!H8 -> 60 | F12: =IF(E12>=Bestand!E8,"Höchstbestand",IF(Bedarf!E12<=Bestand!G8,"Mindestbestand",IF(Bedarf!E12<=Bestand!F8,"Meldebestand",""))) ->  | H12: =Bestand!J8 -> 80 | L12: FALSE | M12: Wenn Sie die Bedarfsmeldung drucken wollen, wählen Sie in Ihrem Druckermenu nur die Seite 1 aus
B13: 5013 | C13: =Artikel!B9 -> Tropic Partykleid, schwarz | D13: 38 | E13: =Bestand!H9 -> 60 | F13: =IF(E13>=Bestand!E9,"Höchstbestand",IF(Bedarf!E13<=Bestand!G9,"Mindestbestand",IF(Bedarf!E13<=Bestand!F9,"Meldebestand",""))) ->  | H13: =Bestand!J9 -> 80 | L13: FALSE
B14: 5014 | C14: =Artikel!B10 -> Tropic Partykleid, schwarz | D14: 40 | E14: =Bestand!H10 -> 40 | F14: =IF(E14>=Bestand!E10,"Höchstbestand",IF(Bedarf!E14<=Bestand!G10,"Mindestbestand",IF(Bedarf!E14<=Bestand!F10,"Meldebestand",""))) -> Meldebestand | H14: =Bestand!J10 -> 80 | L14: FALSE
B15: 5015 | C15: =Artikel!B11 -> Tropic Partykleid, schwarz | D15: 42 | E15: =Bestand!H11 -> 50 | F15: =IF(E15>=Bestand!E11,"Höchstbestand",IF(Bedarf!E15<=Bestand!G11,"Mindestbestand",IF(Bedarf!E15<=Bestand!F11,"Meldebestand",""))) -> Höchstbestand | H15: =Bestand!J11 -> 80 | L15: FALSE
B16: 5021 | C16: =Artikel!B12 -> Tropic Partykleid, grün-orange | D16: 34 | E16: =Bestand!H12 -> 30 | F16: =IF(E16>=Bestand!E12,"Höchstbestand",IF(Bedarf!E16<=Bestand!G12,"Mindestbestand",IF(Bedarf!E16<=Bestand!F12,"Meldebestand",""))) ->  | H16: =Bestand!J12 -> 80 | L16: FALSE
B17: 5022 | C17: =Artikel!B13 -> Tropic Partykleid, grün-orange | D17: 36 | E17: =Bestand!H13 -> 90 | F17: =IF(E17>=Bestand!E13,"Höchstbestand",IF(Bedarf!E17<=Bestand!G13,"Mindestbestand",IF(Bedarf!E17<=Bestand!F13,"Meldebestand",""))) ->  | H17: =Bestand!J13 -> 80 | L17: FALSE
B18: 5023 | C18: =Artikel!B14 -> Tropic Partykleid, grün-orange | D18: 38 | E18: =Bestand!H14 -> 75 | F18: =IF(E18>=Bestand!E14,"Höchstbestand",IF(Bedarf!E18<=Bestand!G14,"Mindestbestand",IF(Bedarf!E18<=Bestand!F14,"Meldebestand",""))) ->  | H18: =Bestand!J14 -> 80 | L18: FALSE
B19: 5024 | C19: =Artikel!B15 -> Tropic Partykleid, grün-orange | D19: 40 | E19: =Bestand!H15 -> 60 | F19: =IF(E19>=Bestand!E15,"Höchstbestand",IF(Bedarf!E19<=Bestand!G15,"Mindestbestand",IF(Bedarf!E19<=Bestand!F15,"Meldebestand",""))) ->  | H19: =Bestand!J15 -> 80 | L19: FALSE
B20: 5025 | C20: =Artikel!B16 -> Tropic Partykleid, grün-orange | D20: 42 | E20: =Bestand!H16 -> 45 | F20: =IF(E20>=Bestand!E16,"Höchstbestand",IF(Bedarf!E20<=Bestand!G16,"Mindestbestand",IF(Bedarf!E20<=Bestand!F16,"Meldebestand",""))) ->  | H20: =Bestand!J16 -> 80 | L20: FALSE
A22: Verkaufslager | D22: Näherei II
A23: Name | C23: Unterschrift | D23: Datum | F23: Unterschrift | H23: Bearbeitungsvermerk

Sheet Auftrag
A1: Verkaufslager
A3: Arbeitsauftrag 1
B5: A. Erfassen Sie mit dem aktuellen Datum die folgenden Lagerbewebgungen:
A7: Nr. | B7: Datum | C7: Artikel-Nr.: | D7: Vorgang | H7: Menge
A8: 1. | B8: =TODAY() -> 2020-08-31 | C8: 5011 | D8: Abholung von Kleidern durch die Boutique Simone Sommer | H8: 5
A9: 2. | B9: 2020-08-31 | C9: 5013 | D9: Auslieferung einer Bestellung an die Kick Moden GmbH | H9: 25
A10: 3. | B10: 2020-08-31 | C10: 5021 | D10: Lieferung von der Näherei II | H10: 20
A11: 4. | B11: 2020-08-31 | C11: 5022 | D11: Versand von Kleidern an die Black & Blue Jeans GmbH | H11: 30
A12: 5. | B12: 2020-08-31 | C12: 5022 | D12: Versand an die Fa. Cassity Ltd., London | H12: 20
A13: 6. | B13: 2020-08-31 | C13: 5025 | D13: Einlagerung von Kleidern, grün-orange, Größe 34 | H13: 5
B15: B. Schreiben Sie eine Bedarfsmeldung.
J16: Wählen Sie zum Druck des
B17: Durch die Auslieferung von fertigen Erzeugnissen an die Kunden der Tropic GmbH werden die Lager- | J17: Arbeitsauftrages nur die
A18: 7. | B18: bestände aufgebraucht. Es muss aber gewährleistet werden, dass die Kunden jederzeit beliefert werden | J18: Seite 1 aus.
B19: können. Dazu sind bei Erreichen der Meldebestände die entsprechenden Bedarfsmeldungen an die
B20: Produktionsabteilungen zu schreiben.
B21: Schauen Sie sich die derzeitigen Lagerbestände (nach Erledigung der Aufträge 1. - 6.) an und schreiben
B22: Sie die entsprechenden Bedarfsmeldungen, wenn Meldebestände von einzelnen Produkten erreicht sind.
B23: Bei jeder Bedarfsmeldung soll der Höchstbestand wieder erreicht werden.
B25: C. Erfassen Sie mit dem angegebenen Datum die Lieferungen aufgrund der
B26: Bedarfsmeldungen aus Aufgabe B.
B28: Wenn Sie die Lagerbewegungen aus Aufgabe A. richtig erfasst haben und die Bedarfsmeldung
B29: geschrieben haben liefert die Näherei II die folgenden Artikel:
A30: Nr. | B30: Datum | C30: Artikel-Nr.: | D30: Vorgang | H30: Menge
A31: 8. | B31: =TODAY()+5 -> 2020-09-05 | C31: 5013 | D31: Tropic Partykleid schwarz, Größe 38 | H31: 65
A32: 9. | B32: =TODAY()+5 -> 2020-09-05 | C32: 5014 | D32: Tropic Partykleid schwarz, Größe 40 | H32: 60
A33: 10. | B33: =TODAY()+5 -> 2020-09-05 | C33: 5022 | D33: Tropic Partykleid grün-orange, Größe 36 | H33: 60
B35: D. Ändern Sie die kritischen Bestände.
A37: 11. | B37: Bei dem Artikel mit der Nummer 5015 wird in Zukunft von einem durchschnittlichen Tagesabsatz
B38: von 5 Stück ausgegangen. Produktion und Lieferung aus der Näherei dauern jeweils 5 Tage.
B39: Es soll weiterhin ein Mindestbestand von 10 Stück am Lager sein. Berechnen Sie den neuen
B40: Meldebestand und nehmen Sie die Änderung in der Lagerkartei vor.
A41: 12. | B41: Der Mindestbestand des Tropic Partykleides grün-orange, Größe 38, soll bei einem durchschnittlichen
B42: Tagesverkauf von 20 Stück für 3 Tage ausreichend sein.
A43: 13. | B43: Der Höchstbestand des Artikel mit der Nummer 5025 soll bei einem durchschnittlichen Tagesabsatz
B44: von 5 Stück und einem Mindestbestand von 15 Stück den Lagerbestand für 10 Tage sichern.
B46: E. Erfassen Sie mit dem angegebenen Datum weitere Lagerbewegungen.
A48: 14. | B48: Erfassen Sie je 5 Zu- und Abgänge. Achten Sie auf die kritischen Bestände und veranlassen Sie
B49: die notwendigen Maßnahmen.
B51: F. Beurteilen Sie Lagerkennziffern der verschiedenen Artikel.
A53: 15. | B53: Erhöhen Sie den Kalkulationszinssatz auf 4% und beurteilen Sie Lagerkennziffern in der Bestandstabelle.
